[Event "56th Biel Festival MTO 2023"]
[White "Materia,Marco"]
[Black "Vasquez Toledo,Cristian"]
[Site "Biel"]
[Round "8.21"]
[Annotator "ChessBase"]
[Result "1-0"]
[Date "2023.07.26"]
[WhiteElo "2436"]
[BlackElo "2233"]
[PlyCount "103"]
[TimeControl "60"]

1. d4 {[%emt 0:0:0]} Nf6 {[%emt 0:0:0]} 2. c4 {[%emt 0:0:0]} g6 {[%emt 0:0:0]} 3. Nc3 {[%emt 0:0:0]} Bg7 {[%emt 0:0:0]} 4. e4 {[%emt 0:0:0]} d6 {[%emt 0:0:0]} 5. h3 {[%emt 0:0:0]} e5 {[%emt 0:0:0]} 6. dxe5 {[%emt 0:0:0]} dxe5 {[%emt 0:0:0]} 7. Qxd8+ {[%emt 0:0:0]} Kxd8 {[%emt 0:0:0]} 8. Nf3 {[%emt 0:0:0]} Nc6 {[%emt 0:11:6]} 9. Be3 {[%emt 0:0:0]} Be6 {[%emt 0:4:9]} 10. O-O-O+ {[%emt 0:4:27]} Kc8 {[%emt 0:10:3]} 11. Be2 {[%emt 0:24:40]} h6 {[%emt 0:24:12]} 12. Kb1 {[%emt 0:6:43]} a6 {[%emt 0:1:31]} 13. Rc1 {[%emt 0:11:40]} Rd8 {[%emt 0:1:11]} 14. Rhd1 {[%emt 0:0:9]} Rxd1 {[%emt 0:6:31]} 15. Rxd1 {[%emt 0:0:1]} Nd7 {[%emt 0:0:20]} 16. Nd5 {[%emt 0:8:38]} a5 {[%emt 0:12:30]} 17. Ne1 {[%emt 0:7:36]} b6 {[%emt 0:16:34]} 18. Nc2 {[%emt 0:10:21]} Kb7 {[%emt 0:3:33]} 19. Na3 {[%emt 0:4:0]} Bf8 {[%emt 0:0:21]} 20. Nb5 {[%emt 0:0:26]} Rc8 {[%emt 0:0:5]} 21. Bg4 {[%emt 0:4:44]} Nc5 {[%emt 0:3:6]} 22. Bxe6 {[%emt 0:1:12]} fxe6 {[%emt 0:0:4]} 23. Ndc3 {[%emt 0:0:46]} Rd8 {[%emt 0:0:24]} 24. Rxd8 {[%emt 0:1:25]} Nxd8 {[%emt 0:0:1]} 25. Kc2 {[%emt 0:1:44]} Nc6 {[%emt 0:1:15]} 26. Kd2 {[%emt 0:1:9]} Kc8 {[%emt 0:0:23]} 27. f3 {[%emt 0:1:33]} Kd7 {[%emt 0:0:9]} 28. Nd1 {[%emt 0:1:20]} Nd8 {[%emt 0:3:32]} 29. Nf2 {[%emt 0:0:20]} h5 {[%emt 0:0:15]} 30. Bxc5 {[%emt 0:5:25]} Bxc5 {[%emt 0:0:5]} 31. Nd3 {[%emt 0:0:3]} Bd6 {[%emt 0:1:16]} 32. c5 {[%emt 0:1:26]} bxc5 {[%emt 0:0:11]} 33. Na3 {[%emt 0:2:7]} Ke7 {[%emt 0:2:40]} 34. Nc4 {[%emt 0:0:25]} Nc6 {[%emt 0:0:4]} 35. a4 {[%emt 0:0:41]} Kf6 {[%emt 0:0:5]} 36. Nc1 {[%emt 0:0:50]} Kg5 {[%emt 0:0:31]} 37. Ke3 {[%emt 0:0:32]} Kh4 {[%emt 0:1:47]} 38. Kf2 {[%emt 0:0:4]} Nb4 {[%emt 0:0:43]} 39. Nxa5 {[%emt 0:2:2]} c4 {[%emt 0:0:1]} 40. Nxc4 {[%emt 0:0:8]} Bc5+ {[%emt 0:0:15]} 41. Kf1 {[%emt 0:30:17]} Nc2 {[%emt 0:0:0]} 42. Nd3 {[%emt 0:0:0]} Bd4 {[%emt 0:0:0]} 43. Ndxe5 {[%emt 0:0:0]} g5 {[%emt 0:0:0]} 44. Nc6 {[%emt 0:0:0]} g4 {[%emt 0:0:0]} 45. hxg4 {[%emt 0:0:0]} hxg4 {[%emt 0:0:0]} 46. a5 {[%emt 0:0:0]} Kg3 {[%emt 0:0:0]} 47. a6 {[%emt 0:0:0]} Bc5 {[%emt 0:0:0]} 48. fxg4 {[%emt 0:0:0]} Kxg4 {[%emt 0:0:0]} 49. b4 {[%emt 0:0:0]} Ba7 {[%emt 0:1:25]} 50. b5 {[%emt 0:0:0]} Kf4 {[%emt 0:1:37]} 51. Nxa7 {[%emt 0:0:0]} Nd4 {[%emt 0:0:5]} 52. Na3 {[%emt 0:0:0]} 1-0

[Event "56th Biel Festival MTO 2023"]
[White "Wessman,Richard"]
[Black "Frey,Fabian"]
[Site "Biel"]
[Round "8.22"]
[Annotator "ChessBase"]
[Result "1-0"]
[Date "2023.07.26"]
[WhiteElo "2410"]
[BlackElo "2230"]
[PlyCount "49"]
[TimeControl "60"]

1. d4 {[%emt 0:0:0]} d5 {[%emt 0:0:0]} 2. c4 {[%emt 0:0:0]} c6 {[%emt 0:0:0]} 3. Nf3 {[%emt 0:0:0]} Nf6 {[%emt 0:0:0]} 4. Nc3 {[%emt 0:0:0]} e6 {[%emt 0:0:0]} 5. g3 {[%emt 0:0:0]} dxc4 {[%emt 0:0:0]} 6. Bg2 {[%emt 0:1:50]} b5 {[%emt 0:0:0]} 7. O-O {[%emt 0:2:25]} Bb7 {[%emt 0:0:0]} 8. e4 {[%emt 0:10:9]} Be7 {[%emt 0:0:0]} 9. Bg5 {[%emt 0:4:47]} h6 {[%emt 0:15:39]} 10. Bxf6 {[%emt 0:8:31]} Bxf6 {[%emt 0:2:39]} 11. e5 {[%emt 0:22:22]} Be7 {[%emt 0:2:20]} 12. h4 {[%emt 0:0:12]} O-O {[%emt 0:8:49]} 13. Nh2 {[%emt 0:0:15]} Qb6 {[%emt 0:6:52]} 14. Qh5 {[%emt 0:2:17]} Nd7 {[%emt 0:6:41]} 15. Ng4 {[%emt 0:7:57]} Rfd8 {[%emt 0:16:57]} 16. Rad1 {[%emt 0:1:44]} Nf8 {[%emt 0:10:58]} 17. Ne4 {[%emt 0:6:17]} Rxd4 {[%emt 0:11:50]} 18. Nef6+ {[%emt 0:11:54]} Bxf6 {[%emt 0:1:14]} 19. exf6 {[%emt 0:0:27]} Nh7 {[%emt 0:2:44]} 20. fxg7 {[%emt 0:5:54]} Rxg4 {[%emt 0:0:23]} 21. Qxg4 {[%emt 0:0:8]} Nf6 {[%emt 0:0:47]} 22. Qf4 {[%emt 0:1:3]} Kxg7 {[%emt 0:0:7]} 23. Qe5 {[%emt 0:0:27]} Rc8 {[%emt 0:4:0]} 24. Rd4 {[%emt 0:2:30]} Kg6 {[%emt 0:4:46]} 25. h5+ {[%emt 0:0:30]} 1-0

[Event "56th Biel Festival MTO 2023"]
[White "Morawietz,Dieter"]
[Black "Costello,Alexander"]
[Site "Biel"]
[Round "8.23"]
[Annotator "ChessBase"]
[Result "1-0"]
[Date "2023.07.26"]
[WhiteElo "2396"]
[BlackElo "2224"]
[PlyCount "67"]
[TimeControl "60"]

1. d4 {[%emt 0:0:0]} Nf6 {[%emt 0:0:0]} 2. c4 {[%emt 0:0:0]} g6 {[%emt 0:0:0]} 3. Nc3 {[%emt 0:0:0]} d5 {[%emt 0:0:0]} 4. Bg5 {[%emt 0:0:0]} Ne4 {[%emt 0:0:0]} 5. Bh4 {[%emt 0:0:0]} Nxc3 {[%emt 0:4:51]} 6. bxc3 {[%emt 0:0:0]} c5 {[%emt 0:0:5]} 7. e3 {[%emt 0:0:0]} Nc6 {[%emt 0:2:11]} 8. Nf3 {[%emt 0:0:0]} Bg7 {[%emt 0:3:13]} 9. cxd5 {[%emt 0:0:28]} Qxd5 {[%emt 0:0:3]} 10. Be2 {[%emt 0:0:16]} cxd4 {[%emt 0:41:49]} 11. cxd4 {[%emt 0:0:35]} Qa5+ {[%emt 0:0:3]} 12. Qd2 {[%emt 0:2:46]} Be6 {[%emt 0:0:7]} 13. Rb1 {[%emt 0:7:5]} b6 {[%emt 0:6:18]} 14. Bb5 {[%emt 0:5:50]} Bd7 {[%emt 0:1:4]} 15. O-O {[%emt 0:3:36]} Qxd2 {[%emt 0:1:45]} 16. Nxd2 {[%emt 0:0:6]} Na5 {[%emt 0:8:10]} 17. Ba6 {[%emt 0:11:49]} Bc6 {[%emt 0:11:26]} 18. Nb3 {[%emt 0:17:22]} Nxb3 {[%emt 0:5:50]} 19. Rxb3 {[%emt 0:0:53]} e5 {[%emt 0:2:31]} 20. Rc3 {[%emt 0:5:45]} Bd7 {[%emt 0:0:20]} 21. Rc7 {[%emt 0:0:14]} Be6 {[%emt 0:2:1]} 22. Bb7 {[%emt 0:5:43]} Rb8 {[%emt 0:1:2]} 23. Bc6+ {[%emt 0:1:15]} Kf8 {[%emt 0:0:5]} 24. d5 {[%emt 0:0:18]} Bf5 {[%emt 0:0:29]} 25. Be7+ {[%emt 0:6:11]} Kg8 {[%emt 0:0:1]} 26. d6 {[%emt 0:5:23]} Bf8 {[%emt 0:0:13]} 27. Bd5 {[%emt 0:5:19]} Kg7 {[%emt 0:0:26]} 28. e4 {[%emt 0:0:38]} Bc8 {[%emt 0:1:8]} 29. Rfc1 {[%emt 0:0:8]} Ba6 {[%emt 0:1:2]} 30. Rxa7 {[%emt 0:0:7]} Bxe7 {[%emt 0:0:30]} 31. Rxe7 {[%emt 0:2:21]} Rbd8 {[%emt 0:2:57]} 32. Rxf7+ {[%emt 0:0:24]} Kh6 {[%emt 0:0:1]} 33. Rc6 {[%emt 0:2:49]} Bb7 {[%emt 0:0:38]} 34. Rxb7 {[%emt 0:0:7]} 1-0

[Event "56th Biel Festival MTO 2023"]
[White "Kamber,Bruno"]
[Black "Pham,Le Thao Nguyen"]
[Site "Biel"]
[Round "8.24"]
[Annotator "ChessBase"]
[Result "0-1"]
[Date "2023.07.26"]
[WhiteElo "2214"]
[BlackElo "2369"]
[PlyCount "84"]
[TimeControl "60"]

1. e4 {[%emt 0:0:0]} c6 {[%emt 0:0:0]} 2. d4 {[%emt 0:0:0]} d5 {[%emt 0:0:0]} 3. e5 {[%emt 0:0:0]} Bf5 {[%emt 0:0:0]} 4. Nf3 {[%emt 0:0:0]} e6 {[%emt 0:0:0]} 5. Be2 {[%emt 0:0:0]} Nd7 {[%emt 0:0:0]} 6. c3 {[%emt 0:0:0]} h6 {[%emt 0:0:0]} 7. O-O {[%emt 0:0:0]} Ne7 {[%emt 0:0:0]} 8. Na3 {[%emt 0:0:0]} a6 {[%emt 0:0:0]} 9. Nc2 {[%emt 0:0:0]} Nc8 {[%emt 0:1:54]} 10. a4 {[%emt 0:0:0]} c5 {[%emt 0:7:13]} 11. dxc5 {[%emt 0:0:0]} Bxc5 {[%emt 0:0:39]} 12. b4 {[%emt 0:0:0]} Be7 {[%emt 0:1:36]} 13. Ncd4 {[%emt 0:3:13]} Bh7 {[%emt 0:1:53]} 14. Nxe6 {[%emt 0:3:51]} fxe6 {[%emt 0:3:1]} 15. Nd4 {[%emt 0:0:35]} Nf8 {[%emt 0:9:49]} 16. Bh5+ {[%emt 0:6:23]} g6 {[%emt 0:5:43]} 17. Bxh6 {[%emt 0:12:2]} Bg8 {[%emt 0:12:12]} 18. Bxf8 {[%emt 0:6:37]} Rxh5 {[%emt 0:1:6]} 19. g4 {[%emt 0:1:9]} Rh7 {[%emt 0:4:7]} 20. Bxe7 {[%emt 0:0:26]} Qxe7 {[%emt 0:0:54]} 21. f4 {[%emt 0:0:16]} Nb6 {[%emt 0:1:35]} 22. Nf3 {[%emt 0:10:40]} Nc4 {[%emt 0:4:29]} 23. Qd3 {[%emt 0:0:20]} Bf7 {[%emt 0:1:16]} 24. Ng5 {[%emt 0:0:56]} Rh4 {[%emt 0:0:46]} 25. Qg3 {[%emt 0:10:17]} Rh6 {[%emt 0:1:18]} 26. h4 {[%emt 0:2:27]} O-O-O {[%emt 0:2:50]} 27. Rf2 {[%emt 0:2:24]} Rdh8 {[%emt 0:1:28]} 28. Rh2 {[%emt 0:0:29]} Be8 {[%emt 0:1:18]} 29. Nf3 {[%emt 0:6:29]} Kb8 {[%emt 0:3:5]} 30. Qf2 {[%emt 0:2:0]} Bd7 {[%emt 0:4:14]} 31. Kg2 {[%emt 0:1:6]} Rf8 {[%emt 0:8:35]} 32. Kg3 {[%emt 0:0:38]} Rh7 {[%emt 0:0:40]} 33. Ng5 {[%emt 0:0:53]} Rhh8 {[%emt 0:0:5]} 34. Qc2 {[%emt 0:3:58]} Qg7 {[%emt 0:1:27]} 35. Qe2 {[%emt 0:3:12]} Rc8 {[%emt 0:1:15]} 36. Nf3 {[%emt 0:3:32]} Nb6 {[%emt 0:2:9]} 37. a5 {[%emt 0:1:58]} Na4 {[%emt 0:0:32]} 38. Rc1 {[%emt 0:2:13]} Nxc3 {[%emt 0:0:49]} 39. Qe3 {[%emt 0:0:12]} Ne4+ {[%emt 0:0:43]} 40. Kh3 {[%emt 0:0:9]} Qe7 {[%emt 0:0:46]} 41. Rhh1 {[%emt 0:35:21]} Qxb4 {[%emt 0:34:9]} 42. Rb1 {[%emt 0:0:48]} Rc3 {[%emt 0:0:31]} 0-1

[Event "56th Biel Festival MTO 2023"]
[White "Sukandar,Irine Kharisma"]
[Black "Zhang,Lanlin"]
[Site "Biel"]
[Round "8.25"]
[Annotator "ChessBase"]
[Result "1/2-1/2"]
[Date "2023.07.26"]
[WhiteElo "2358"]
[BlackElo "2194"]
[PlyCount "117"]
[TimeControl "60"]

1. Nf3 {[%emt 0:0:0]} Nf6 {[%emt 0:0:0]} 2. e3 {[%emt 0:0:0]} d5 {[%emt 0:0:0]} 3. c4 {[%emt 0:0:0]} e6 {[%emt 0:0:0]} 4. b3 {[%emt 0:0:0]} c5 {[%emt 0:0:0]} 5. Bb2 {[%emt 0:0:0]} Nc6 {[%emt 0:0:0]} 6. cxd5 {[%emt 0:0:0]} exd5 {[%emt 0:0:12]} 7. Bb5 {[%emt 0:0:0]} Bd6 {[%emt 0:0:40]} 8. O-O {[%emt 0:0:0]} a6 {[%emt 0:7:47]} 9. Bxc6+ {[%emt 0:0:0]} bxc6 {[%emt 0:0:6]} 10. d4 {[%emt 0:0:0]} cxd4 {[%emt 0:1:8]} 11. Bxd4 {[%emt 0:2:54]} h6 {[%emt 0:9:37]} 12. Qc2 {[%emt 0:2:7]} Bd7 {[%emt 0:1:33]} 13. Nc3 {[%emt 0:5:17]} O-O {[%emt 0:3:46]} 14. Na4 {[%emt 0:6:16]} Ne4 {[%emt 0:8:36]} 15. Rac1 {[%emt 0:4:48]} a5 {[%emt 0:11:12]} 16. Be5 {[%emt 0:15:30]} Bb4 {[%emt 0:14:31]} 17. Bb2 {[%emt 0:8:6]} f6 {[%emt 0:15:54]} 18. Rfd1 {[%emt 0:8:19]} Rc8 {[%emt 0:5:27]} 19. h3 {[%emt 0:2:46]} Bd6 {[%emt 0:1:9]} 20. Qe2 {[%emt 0:1:29]} Bb8 {[%emt 0:4:4]} 21. Bd4 {[%emt 0:3:25]} Re8 {[%emt 0:2:14]} 22. Bb6 {[%emt 0:4:57]} Bc7 {[%emt 0:1:51]} 23. Bxc7 {[%emt 0:0:24]} Qxc7 {[%emt 0:3:45]} 24. Nc5 {[%emt 0:1:2]} Qd6 {[%emt 0:3:13]} 25. Qc2 {[%emt 0:8:25]} f5 {[%emt 0:3:28]} 26. Nd4 {[%emt 0:2:16]} f4 {[%emt 0:2:27]} 27. exf4 {[%emt 0:7:33]} Nxc5 {[%emt 0:0:6]} 28. Qxc5 {[%emt 0:0:3]} Qxf4 {[%emt 0:0:5]} 29. Re1 {[%emt 0:1:50]} Rf8 {[%emt 0:1:34]} 30. Ne2 {[%emt 0:0:25]} Qd2 {[%emt 0:0:13]} 31. Qc3 {[%emt 0:2:55]} Qg5 {[%emt 0:0:45]} 32. Ng3 {[%emt 0:0:47]} h5 {[%emt 0:0:35]} 33. Re5 {[%emt 0:2:19]} Qf4 {[%emt 0:0:29]} 34. Rxh5 {[%emt 0:4:23]} Qxf2+ {[%emt 0:0:30]} 35. Kh2 {[%emt 0:0:7]} Qf6 {[%emt 0:0:11]} 36. Qd3 {[%emt 0:4:22]} g6 {[%emt 0:0:9]} 37. Rh6 {[%emt 0:4:4]} Be8 {[%emt 0:0:4]} 38. Qe3 {[%emt 0:1:3]} d4 {[%emt 0:1:33]} 39. Qe4 {[%emt 0:1:1]} Qg5 {[%emt 0:0:25]} 40. Rh4 {[%emt 0:0:50]} Rd8 {[%emt 0:0:38]} 41. Rd1 {[%emt 0:0:0]} c5 {[%emt 0:0:0]} 42. Rg4 {[%emt 0:0:0]} Qd5 {[%emt 0:0:0]} 43. Qd3 {[%emt 0:0:0]} Rd7 {[%emt 0:0:0]} 44. Re1 {[%emt 0:0:0]} Rg7 {[%emt 0:0:0]} 45. Qd2 {[%emt 0:0:0]} Bc6 {[%emt 0:0:0]} 46. Kg1 {[%emt 0:4:6]} a4 {[%emt 0:0:0]} 47. b4 {[%emt 0:2:8]} d3 {[%emt 0:0:27]} 48. Nf1 {[%emt 0:7:55]} cxb4 {[%emt 0:12:31]} 49. Ne3 {[%emt 0:0:26]} Qd6 {[%emt 0:2:28]} 50. Rd1 {[%emt 0:6:19]} Rb8 {[%emt 0:7:15]} 51. Qb2 {[%emt 0:0:51]} Qe6 {[%emt 0:1:33]} 52. Rxd3 {[%emt 0:0:48]} b3 {[%emt 0:0:10]} 53. axb3 {[%emt 0:1:3]} axb3 {[%emt 0:0:8]} 54. Rgd4 {[%emt 0:1:1]} Rd7 {[%emt 0:7:12]} 55. Rh4 {[%emt 0:5:28]} Rg7 {[%emt 0:0:3]} 56. Rg4 {[%emt 0:3:18]} Ra7 {[%emt 0:2:29]} 57. Rh4 {[%emt 0:2:3]} Rg7 {[%emt 0:0:2]} 58. Rhd4 {[%emt 0:2:14]} Rd7 {[%emt 0:0:5]} 59. Rh4 {[%emt 0:1:46]} 1/2-1/2

[Event "56th Biel Festival MTO 2023"]
[White "Wang,Chuqiao"]
[Black "Besou,Hussain"]
[Site "Biel"]
[Round "8.26"]
[Annotator "ChessBase"]
[Result "1/2-1/2"]
[Date "2023.07.26"]
[WhiteElo "2161"]
[BlackElo "2348"]
[PlyCount "64"]
[TimeControl "60"]

1. d4 {[%emt 0:0:0]} Nf6 {[%emt 0:0:0]} 2. c4 {[%emt 0:0:0]} e6 {[%emt 0:0:0]} 3. Nf3 {[%emt 0:0:0]} d5 {[%emt 0:0:0]} 4. Nc3 {[%emt 0:0:0]} Be7 {[%emt 0:0:0]} 5. Bg5 {[%emt 0:0:0]} O-O {[%emt 0:0:0]} 6. e3 {[%emt 0:0:0]} h6 {[%emt 0:0:0]} 7. Bf4 {[%emt 0:0:0]} b6 {[%emt 0:0:0]} 8. cxd5 {[%emt 0:0:0]} exd5 {[%emt 0:0:0]} 9. Bd3 {[%emt 0:0:0]} Bb7 {[%emt 0:0:0]} 10. h3 {[%emt 0:0:0]} c5 {[%emt 0:0:0]} 11. Rc1 {[%emt 0:0:0]} Nbd7 {[%emt 0:2:15]} 12. O-O {[%emt 0:6:47]} a6 {[%emt 0:4:28]} 13. b3 {[%emt 0:6:7]} Re8 {[%emt 0:5:52]} 14. Bb1 {[%emt 0:1:23]} Nf8 {[%emt 0:8:47]} 15. Be5 {[%emt 0:5:46]} Ne4 {[%emt 0:8:34]} 16. Nd2 {[%emt 0:7:25]} cxd4 {[%emt 0:6:40]} 17. Bxd4 {[%emt 0:0:44]} Bf6 {[%emt 0:7:25]} 18. Nf3 {[%emt 0:6:5]} Bxd4 {[%emt 0:4:22]} 19. Nxd4 {[%emt 0:1:11]} Ng6 {[%emt 0:3:0]} 20. Nf3 {[%emt 0:12:19]} Rc8 {[%emt 0:5:3]} 21. Qd4 {[%emt 0:2:17]} Rc5 {[%emt 0:3:25]} 22. Na4 {[%emt 0:1:14]} Rxc1 {[%emt 0:3:15]} 23. Rxc1 {[%emt 0:0:2]} b5 {[%emt 0:0:31]} 24. Nc5 {[%emt 0:1:13]} Qe7 {[%emt 0:4:14]} 25. Nxb7 {[%emt 0:4:7]} Qxb7 {[%emt 0:1:7]} 26. Ne1 {[%emt 0:10:15]} Nh4 {[%emt 0:3:39]} 27. Nd3 {[%emt 0:11:37]} Nf5 {[%emt 0:1:9]} 28. Qb2 {[%emt 0:0:27]} Qe7 {[%emt 0:2:16]} 29. Nf4 {[%emt 0:6:12]} d4 {[%emt 0:6:4]} 30. exd4 {[%emt 0:0:55]} Qg5 {[%emt 0:0:7]} 31. Bxe4 {[%emt 0:0:32]} Rxe4 {[%emt 0:0:7]} 32. Ne2 {[%emt 0:0:31]} Kh7 {[%emt 0:4:1]} 1/2-1/2

[Event "56th Biel Festival MTO 2023"]
[White "Akshit Kumar J"]
[Black "Karthik Rajaa"]
[Site "Biel"]
[Round "8.27"]
[Annotator "ChessBase"]
[Result "0-1"]
[Date "2023.07.26"]
[WhiteElo "2105"]
[BlackElo "2276"]
[PlyCount "106"]
[TimeControl "60"]

1. e4 {[%emt 0:0:0]} c6 {[%emt 0:0:0]} 2. Nc3 {[%emt 0:0:0]} d5 {[%emt 0:0:0]} 3. Nf3 {[%emt 0:0:0]} dxe4 {[%emt 0:0:0]} 4. Nxe4 {[%emt 0:0:0]} Nf6 {[%emt 0:0:0]} 5. Qe2 {[%emt 0:0:0]} Na6 {[%emt 0:0:0]} 6. d3 {[%emt 0:0:0]} Bg4 {[%emt 0:0:0]} 7. Bd2 {[%emt 0:12:55]} e6 {[%emt 0:4:23]} 8. O-O-O {[%emt 0:7:23]} Qd5 {[%emt 0:22:21]} 9. Kb1 {[%emt 0:8:12]} Nc5 {[%emt 0:8:47]} 10. Nxf6+ {[%emt 0:26:10]} gxf6 {[%emt 0:0:13]} 11. h3 {[%emt 0:6:55]} Bxf3 {[%emt 0:0:57]} 12. Qxf3 {[%emt 0:0:27]} Qxf3 {[%emt 0:0:28]} 13. gxf3 {[%emt 0:0:1]} Nd7 {[%emt 0:15:43]} 14. d4 {[%emt 0:5:16]} Rd8 {[%emt 0:10:48]} 15. Rg1 {[%emt 0:7:37]} Nb6 {[%emt 0:1:10]} 16. c3 {[%emt 0:1:58]} h5 {[%emt 0:3:25]} 17. Kc2 {[%emt 0:10:0]} Bh6 {[%emt 0:0:55]} 18. Be1 {[%emt 0:2:53]} Kd7 {[%emt 0:4:57]} 19. c4 {[%emt 0:1:32]} Rhg8 {[%emt 0:1:18]} 20. Rh1 {[%emt 0:1:10]} Kc8 {[%emt 0:3:38]} 21. b3 {[%emt 0:2:26]} f5 {[%emt 0:3:55]} 22. Bc3 {[%emt 0:0:35]} Bf4 {[%emt 0:8:55]} 23. a4 {[%emt 0:0:52]} Na8 {[%emt 0:3:27]} 24. b4 {[%emt 0:0:47]} Nc7 {[%emt 0:1:2]} 25. b5 {[%emt 0:0:44]} Rd7 {[%emt 0:2:21]} 26. bxc6 {[%emt 0:1:24]} bxc6 {[%emt 0:0:10]} 27. Rb1 {[%emt 0:0:4]} c5 {[%emt 0:1:53]} 28. dxc5 {[%emt 0:2:42]} Na6 {[%emt 0:1:1]} 29. Rb5 {[%emt 0:2:10]} Rc7 {[%emt 0:0:16]} 30. a5 {[%emt 0:0:34]} Rc6 {[%emt 0:0:34]} 31. Bf6 {[%emt 0:0:37]} Nc7 {[%emt 0:0:30]} 32. Rb3 {[%emt 0:0:32]} Rxc5 {[%emt 0:0:42]} 33. Bc3 {[%emt 0:0:3]} Be5 {[%emt 0:1:32]} 34. Bd2 {[%emt 0:0:20]} Bd4 {[%emt 0:0:34]} 35. Be2 {[%emt 0:0:55]} Rg2 {[%emt 0:0:35]} 36. f4 {[%emt 0:0:43]} Rxf2 {[%emt 0:1:4]} 37. Bxh5 {[%emt 0:0:29]} Rxc4+ {[%emt 0:0:20]} 38. Kd3 {[%emt 0:0:1]} Ra4 {[%emt 0:0:11]} 39. Rhb1 {[%emt 0:0:36]} Rh2 {[%emt 0:0:41]} 40. Bxf7 {[%emt 0:0:55]} Rxh3+ {[%emt 0:0:19]} 41. Ke2 {[%emt 0:0:0]} Rh2+ {[%emt 0:0:0]} 42. Kd3 {[%emt 0:0:0]} Bc5 {[%emt 0:0:0]} 43. Rd1 {[%emt 0:1:47]} Rd4+ {[%emt 0:0:0]} 44. Kc3 {[%emt 0:0:42]} Rh7 {[%emt 0:6:6]} 45. Bg6 {[%emt 0:1:29]} Rh3+ {[%emt 0:0:14]} 46. Kc2 {[%emt 0:0:33]} Rxb3 {[%emt 0:0:8]} 47. Kxb3 {[%emt 0:0:4]} Bb4 {[%emt 0:0:12]} 48. Kc2 {[%emt 0:0:31]} Bxd2 {[%emt 0:0:20]} 49. Rxd2 {[%emt 0:0:7]} Rxd2+ {[%emt 0:0:18]} 50. Kxd2 {[%emt 0:0:6]} Nd5 {[%emt 0:0:2]} 51. Bf7 {[%emt 0:0:10]} Nxf4 {[%emt 0:1:1]} 52. Ke3 {[%emt 0:0:7]} e5 {[%emt 0:0:3]} 53. Bg8 {[%emt 0:0:11]} Kd7 {[%emt 0:0:13]} 0-1

[Event "56th Biel Festival MTO 2023"]
[White "Coles,Ruben"]
[Black "Gomez Barrera,Javiera Belen"]
[Site "Biel"]
[Round "8.28"]
[Annotator "ChessBase"]
[Result "1-0"]
[Date "2023.07.26"]
[WhiteElo "2167"]
[BlackElo "2256"]
[PlyCount "93"]
[TimeControl "60"]

1. e4 {[%emt 0:0:0]} c5 {[%emt 0:0:0]} 2. Nf3 {[%emt 0:0:0]} Nc6 {[%emt 0:0:0]} 3. Bb5 {[%emt 0:0:0]} e6 {[%emt 0:0:0]} 4. O-O {[%emt 0:0:0]} Nge7 {[%emt 0:0:0]} 5. d4 {[%emt 0:0:0]} cxd4 {[%emt 0:0:0]} 6. Nxd4 {[%emt 0:0:0]} Ng6 {[%emt 0:0:0]} 7. Nxc6 {[%emt 0:0:0]} bxc6 {[%emt 0:0:34]} 8. Bd3 {[%emt 0:0:0]} Be7 {[%emt 0:9:32]} 9. c4 {[%emt 0:0:0]} O-O {[%emt 0:6:32]} 10. Nc3 {[%emt 0:2:5]} Rb8 {[%emt 0:3:42]} 11. Rb1 {[%emt 0:7:10]} Qc7 {[%emt 0:8:32]} 12. f4 {[%emt 0:11:22]} f5 {[%emt 0:30:31]} 13. exf5 {[%emt 0:9:21]} exf5 {[%emt 0:2:30]} 14. Be3 {[%emt 0:3:3]} d6 {[%emt 0:1:23]} 15. Qc2 {[%emt 0:4:17]} Kh8 {[%emt 0:0:35]} 16. a3 {[%emt 0:5:51]} Bf6 {[%emt 0:2:58]} 17. b4 {[%emt 0:5:24]} Ne7 {[%emt 0:9:45]} 18. Rbc1 {[%emt 0:10:40]} a6 {[%emt 0:7:59]} 19. Rfe1 {[%emt 0:5:46]} Bd7 {[%emt 0:4:16]} 20. Kh1 {[%emt 0:6:51]} Rfe8 {[%emt 0:0:48]} 21. Qd2 {[%emt 0:3:30]} Ra8 {[%emt 0:9:19]} 22. Bf1 {[%emt 0:4:26]} Ng6 {[%emt 0:1:10]} 23. a4 {[%emt 0:7:31]} Qb8 {[%emt 0:0:47]} 24. b5 {[%emt 0:2:34]} axb5 {[%emt 0:0:4]} 25. cxb5 {[%emt 0:0:37]} c5 {[%emt 0:0:51]} 26. Nd5 {[%emt 0:10:17]} Bd8 {[%emt 0:0:2]} 27. Qc2 {[%emt 0:0:50]} Ba5 {[%emt 0:1:22]} 28. Red1 {[%emt 0:0:46]} Be6 {[%emt 0:0:17]} 29. Bf2 {[%emt 0:0:24]} Qb7 {[%emt 0:0:44]} 30. Bc4 {[%emt 0:0:50]} Rad8 {[%emt 0:0:26]} 31. h4 {[%emt 0:1:4]} Qf7 {[%emt 0:0:12]} 32. Qb3 {[%emt 0:0:45]} Nf8 {[%emt 0:1:4]} 33. Qg3 {[%emt 0:0:38]} Nd7 {[%emt 0:0:18]} 34. Qf3 {[%emt 0:0:50]} Ra8 {[%emt 0:0:41]} 35. Ne3 {[%emt 0:0:22]} Bc7 {[%emt 0:0:32]} 36. Bxe6 {[%emt 0:0:42]} Qxe6 {[%emt 0:0:1]} 37. Nd5 {[%emt 0:0:13]} Ba5 {[%emt 0:0:5]} 38. Rd3 {[%emt 0:0:43]} Qf7 {[%emt 0:0:59]} 39. Ne3 {[%emt 0:0:25]} Bb4 {[%emt 0:0:55]} 40. Rxd6 {[%emt 0:0:30]} Rxa4 {[%emt 0:0:27]} 41. Qd1 {[%emt 0:0:0]} Ra7 {[%emt 0:0:0]} 42. b6 {[%emt 0:0:0]} Rb7 {[%emt 0:0:0]} 43. Nd5 {[%emt 0:0:0]} Ba3 {[%emt 0:1:20]} 44. Nc7 {[%emt 0:6:23]} Nxb6 {[%emt 0:8:11]} 45. Nxe8 {[%emt 0:1:21]} Bxc1 {[%emt 0:0:2]} 46. Rd8 {[%emt 0:0:40]} Rd7 {[%emt 0:5:1]} 47. Nf6+ {[%emt 0:0:58]} 1-0

[Event "56th Biel Festival MTO 2023"]
[White "Lohia,Sohum"]
[Black "Monteverde,Jonathan"]
[Site "Biel"]
[Round "8.29"]
[Annotator "ChessBase"]
[Result "1-0"]
[Date "2023.07.26"]
[WhiteElo "2247"]
[BlackElo "2074"]
[PlyCount "45"]
[TimeControl "60"]

1. e4 {[%emt 0:0:0]} c5 {[%emt 0:0:0]} 2. Nf3 {[%emt 0:0:0]} d6 {[%emt 0:0:0]} 3. d4 {[%emt 0:0:0]} cxd4 {[%emt 0:0:0]} 4. Nxd4 {[%emt 0:0:0]} Nf6 {[%emt 0:0:0]} 5. Nc3 {[%emt 0:0:0]} a6 {[%emt 0:0:0]} 6. h3 {[%emt 0:0:0]} e5 {[%emt 0:0:0]} 7. Nf3 {[%emt 0:0:0]} Be7 {[%emt 0:0:0]} 8. g4 {[%emt 0:0:0]} h6 {[%emt 0:0:0]} 9. Rg1 {[%emt 0:0:0]} b5 {[%emt 0:11:34]} 10. g5 {[%emt 0:0:0]} hxg5 {[%emt 0:0:8]} 11. Nxg5 {[%emt 0:0:0]} Bb7 {[%emt 0:0:40]} 12. Be3 {[%emt 0:0:0]} Nbd7 {[%emt 0:3:19]} 13. a4 {[%emt 0:0:0]} b4 {[%emt 0:4:26]} 14. Bc4 {[%emt 0:0:0]} bxc3 {[%emt 0:8:25]} 15. Bxf7+ {[%emt 0:0:0]} Kf8 {[%emt 0:0:5]} 16. Bg6 {[%emt 0:0:0]} Qa5 {[%emt 0:2:50]} 17. b4 {[%emt 0:4:32]} Qxb4 {[%emt 0:2:1]} 18. Rb1 {[%emt 0:3:48]} Qxa4 {[%emt 0:10:37]} 19. Rxb7 {[%emt 0:1:32]} Qc6 {[%emt 0:0:23]} 20. Rc7 {[%emt 0:17:37]} Qb5 {[%emt 0:4:14]} 21. Bf5 {[%emt 0:6:13]} Ke8 {[%emt 0:9:52]} 22. Ne6 {[%emt 0:4:55]} Nf8 {[%emt 0:2:16]} 23. Rxe7+ {[%emt 0:0:49]} 1-0

[Event "56th Biel Festival MTO 2023"]
[White "Ammar,Sedrani"]
[Black "Jain Kashish Manoj"]
[Site "Biel"]
[Round "8.30"]
[Annotator "ChessBase"]
[Result "1/2-1/2"]
[Date "2023.07.26"]
[WhiteElo "2154"]
[BlackElo "2375"]
[PlyCount "68"]
[TimeControl "60"]

1. d4 {[%emt 0:0:0]} Nf6 {[%emt 0:0:0]} 2. Bg5 {[%emt 0:0:0]} Ne4 {[%emt 0:0:0]} 3. Bf4 {[%emt 0:0:0]} c5 {[%emt 0:0:0]} 4. f3 {[%emt 0:0:0]} Qa5+ {[%emt 0:0:0]} 5. c3 {[%emt 0:0:0]} Nf6 {[%emt 0:0:0]} 6. Nd2 {[%emt 0:0:0]} cxd4 {[%emt 0:0:0]} 7. Nb3 {[%emt 0:0:0]} Qd8 {[%emt 0:0:0]} 8. Bxb8 {[%emt 0:0:0]} Rxb8 {[%emt 0:0:0]} 9. Qxd4 {[%emt 0:0:0]} b6 {[%emt 0:0:0]} 10. Qf4 {[%emt 0:0:0]} d6 {[%emt 0:15:55]} 11. e4 {[%emt 0:0:0]} Qc7 {[%emt 0:0:15]} 12. Bd3 {[%emt 0:11:29]} g6 {[%emt 0:9:44]} 13. Ne2 {[%emt 0:0:15]} Bg7 {[%emt 0:1:44]} 14. g4 {[%emt 0:11:45]} O-O {[%emt 0:4:54]} 15. h4 {[%emt 0:8:16]} Nd7 {[%emt 0:8:7]} 16. h5 {[%emt 0:3:53]} Ne5 {[%emt 0:1:56]} 17. O-O-O {[%emt 0:2:12]} b5 {[%emt 0:13:27]} 18. g5 {[%emt 0:9:59]} b4 {[%emt 0:11:48]} 19. hxg6 {[%emt 0:3:6]} fxg6 {[%emt 0:11:25]} 20. Qh2 {[%emt 0:4:29]} h5 {[%emt 0:0:20]} 21. gxh6 {[%emt 0:0:4]} Bf6 {[%emt 0:0:5]} 22. f4 {[%emt 0:12:49]} Nxd3+ {[%emt 0:9:0]} 23. Rxd3 {[%emt 0:0:2]} Qc4 {[%emt 0:0:28]} 24. Re3 {[%emt 0:4:18]} Kh7 {[%emt 0:1:3]} 25. Rg1 {[%emt 0:2:18]} Be6 {[%emt 0:0:25]} 26. Qg2 {[%emt 0:9:21]} Rg8 {[%emt 0:1:52]} 27. e5 {[%emt 0:2:11]} dxe5 {[%emt 0:0:2]} 28. fxe5 {[%emt 0:0:1]} Bh8 {[%emt 0:0:11]} 29. Ned4 {[%emt 0:1:26]} Bd5 {[%emt 0:4:18]} 30. Qg5 {[%emt 0:1:14]} Qc7 {[%emt 0:0:30]} 31. Rge1 {[%emt 0:1:2]} Rgf8 {[%emt 0:2:29]} 32. Rg1 {[%emt 0:0:2]} Rg8 {[%emt 0:0:16]} 33. Rge1 {[%emt 0:0:2]} Rgf8 {[%emt 0:3:59]} 34. Rg1 {[%emt 0:0:39]} Rg8 {[%emt 0:0:50]} 1/2-1/2